fUST/lending_fUST_20260106
["ID","MTS","AMOUNT","RATE_DAILY","PERIOD"]
[400548685,1767711042402,-833.08,0.00013698,2]
[400548687,1767711042412,-833.08,0.00013698,2]
[400548689,1767711042422,-833.08,0.00013698,2]
[400548691,1767711042431,-833.08,0.00013698,2]
[400548693,1767711042440,-833.08,0.00013698,2]
[400548695,1767711042449,-833.08,0.00013698,2]
[400548697,1767711042458,-833.08,0.00013698,2]
[400548699,1767711042467,-833.08,0.00013698,2]
[400548701,1767711042476,-833.08,0.00013698,2]
[400548703,1767711042485,-833.08,0.00013698,2]
[400548705,1767711042494,-833.08,0.00013698,2]
[400548707,1767711042503,-833.08,0.00013698,2]
[400548709,1767711042512,-833.08,0.00013698,2]
[400548711,1767711042521,-833.08,0.00013698,2]
[400548713,1767711042531,-833.08,0.00013698,2]
[400548715,1767711042540,-833.08,0.00013698,2]
[400548717,1767711042549,-833.08,0.00013698,2]
[400548719,1767711042558,-833.08,0.00013698,2]
[400548721,1767711042567,-833.08,0.00013698,2]
[400548723,1767711042576,-833.08,0.00013698,2]
[400548725,1767711042585,-833.08,0.00013698,2]
[400548727,1767711042594,-833.08,0.00013698,2]
[400548729,1767711042603,-833.08,0.00013698,2]
[400548731,1767711042612,-833.24672867,0.00013698,2]
[400548733,1767711042622,-500.0,0.00013698,2]
[400548735,1767711042631,-500.0,0.00013698,2]
[400548737,1767711042641,-500.0,0.00013698,2]
[400548740,1767711042651,-500.0,0.00013698,2]
[400548742,1767711042660,-500.0,0.00013698,2]
[400548744,1767711042669,-500.0,0.00013698,2]
[400548746,1767711042683,-500.0,0.00013698,2]
[400548748,1767711042692,-500.0,0.00013698,2]
[400548750,1767711042701,-472.44012806,0.00013698,2]
[400548752,1767711042710,-1000.0,0.00013698,2]
[400548753,1767711042721,-1000.0,0.00013698,2]
[400548756,1767711042731,-1000.0,0.00013698,2]
[400548757,1767711042740,-1000.0,0.00013698,2]
[400548761,1767711042751,-1000.0,0.00013698,2]
[400548762,1767711042759,-1000.0,0.00013698,2]
[400548765,1767711042769,-1000.0,0.00013698,2]
[400548767,1767711042778,-1015.00844165,0.00013698,2]
[400548768,1767711042787,-500.0,0.00013698,2]
[400548771,1767711042796,-500.0,0.00013698,2]
[400548772,1767711042807,-500.0,0.00013698,2]
[400548774,1767711042816,-500.0,0.00013698,2]
[400548776,1767711042825,-500.0,0.00013698,2]
[400548780,1767711042834,-500.0,0.00013698,2]
[400548782,1767711042843,-500.0,0.00013698,2]
[400548785,1767711042853,-500.0,0.00013698,2]
[400548786,1767711042862,-500.0,0.00013698,2]
[400548789,1767711042871,-500.0,0.00013698,2]
[400548791,1767711042880,-500.0,0.00013698,2]
[400548793,1767711042890,-500.0,0.00013698,2]
[400548794,1767711042901,-500.0,0.00013698,2]
[400548796,1767711042910,-500.0,0.00013698,2]
[400548798,1767711042920,-500.0,0.00013698,2]
[400548800,1767711042929,-500.0,0.00013698,2]
[400548802,1767711042938,-500.0,0.00013698,2]
[400548804,1767711042948,-500.0,0.00013698,2]
[400548806,1767711042958,-362.49716895,0.00013698,2]
[400548808,1767711042967,-513.04283332,0.00013698,2]
[400548811,1767711042977,-465.02200056,0.00013698,2]
[400548812,1767711042986,-500.0,0.00013698,2]
[400548814,1767711042996,-382.8339174,0.00013698,2]
[400548817,1767711043006,-500.0,0.00013698,2]
[400548819,1767711043015,-200.0,0.00013699,3]
[400548821,1767711043025,-500.0,0.00013699,2]
[400548823,1767711043035,-500.0,0.00013699,2]
[400548825,1767711043044,-500.0,0.00013699,2]
[400548827,1767711043053,-500.0,0.00013699,2]
[400548829,1767711043063,-500.0,0.00013699,2]
[400548831,1767711043073,-500.0,0.00013699,2]
[400548833,1767711043082,-506.55124883,0.00013699,2]
[400548835,1767711043092,-1000.0,0.00013699,2]
[400548837,1767711043101,-273.1440627,0.00013699,2]
[400548839,1767711043111,-885.4942762,0.00013699,2]
[400548841,1767711043120,-23922.3450123,0.00013699,2]
[400548843,1767711043130,-618.008304,0.00013699,2]
[400548845,1767711043139,-618.008304,0.00013699,2]
[400548847,1767711043148,-618.008304,0.00013699,2]
[400548849,1767711043159,-618.008304,0.00013699,2]
[400548851,1767711043168,-156.236454,0.00013699,2]
[400548853,1767711043177,-151.0,0.00013699,2]
[400548855,1767711043186,-151.0,0.00013699,2]
[400548857,1767711043195,-500.85765138,0.00013699,2]
[400548859,1767711043204,-501.64231058,0.00013699,2]
[400548861,1767711043215,-500.0,0.00013699,2]
[400548863,1767711043224,-504.37236451,0.00013699,2]
[400548865,1767711043234,-500.71714379,0.00013699,2]
[400548867,1767711043243,-500.0,0.00013699,2]
[400548869,1767711043252,-500.0,0.00013699,2]
[400548871,1767711043261,-500.73288358,0.00013699,2]
[400548873,1767711043270,-565.96268901,0.00013699,2]
[400548875,1767711043279,-500.59370123,0.00013699,2]
[400548877,1767711043288,-501.13869568,0.00013699,2]
[400548879,1767711043297,-500.76727011,0.00013699,2]
[400548881,1767711043306,-500.65442518,0.00013699,2]
[400548883,1767711043316,-500.92020919,0.00013699,2]
[400548885,1767711043325,-501.04423764,0.00013699,2]
[400548887,1767711043334,-500.0,0.00013699,2]
[400548889,1767711043343,-500.0,0.00013699,2]
[400548891,1767711043352,-501.07709958,0.00013699,2]
[400548893,1767711043362,-500.6911085,0.00013699,2]
[400548895,1767711043371,-500.0,0.00013699,2]
[400548897,1767711043380,-501.19127842,0.00013699,2]
[400548899,1767711043390,-500.0,0.00013699,2]
[400548901,1767711043402,-500.60483179,0.00013699,2]
[400548903,1767711043412,-500.73320513,0.00013699,2]
[400548905,1767711043421,-500.86295152,0.00013699,2]
[400548907,1767711043435,-500.0,0.00013699,2]
[400548910,1767711043450,-220.37131177,0.00013699,2]
[400548912,1767711043465,-501.56829016,0.00013699,2]
[400548915,1767711043478,-500.68695717,0.00013699,2]
[400548917,1767711043489,-501.17135178,0.00013699,2]
[400548919,1767711043503,-500.2666594,0.00013699,2]
[400548922,1767711043516,-500.93963039,0.00013699,2]
[400548924,1767711043529,-500.74532212,0.00013699,2]
[400548927,1767711043543,-500.0,0.00013699,2]
[400548929,1767711043556,-500.84600982,0.00013699,2]
[400548932,1767711043568,-526.06901587,0.00013699,2]
[400548934,1767711043581,-500.0,0.00013699,2]
[400548936,1767711043594,-500.0,0.00013699,2]
[400548939,1767711043606,-500.0,0.00013699,2]
[400548941,1767711043618,-500.0,0.00013699,2]
[400548943,1767711043630,-410.744111,0.00013699,2]
[400548946,1767711043643,-501.57510488,0.00013699,2]
[400548948,1767711043659,-500.54648237,0.00013699,2]
[400548951,1767711043672,-501.23587401,0.00013699,2]
[400548953,1767711043687,-500.68900305,0.00013699,2]
[400548955,1767711043697,-500.0,0.00013699,2]
[400548957,1767711043709,-254.27500282,0.00013699,2]
[400548960,1767711043723,-500.7233053,0.00013699,2]
[400548962,1767711043737,-500.61401424,0.00013699,2]
[400548965,1767711043750,-502.04480355,0.00013699,2]
[400548967,1767711043764,-500.0,0.00013699,2]
[400548969,1767711043777,-500.76143899,0.00013699,2]
[400548972,1767711043792,-540.98419624,0.00013699,2]
[400548975,1767711043806,-500.0,0.00013699,2]
[400548977,1767711043818,-501.00450759,0.00013699,2]
[400548979,1767711043828,-343.49392703,0.00013699,2]
[400548982,1767711043838,-500.0,0.00013699,2]
[400548986,1767711043850,-500.0,0.00013699,2]
[400548990,1767711043865,-500.70390691,0.00013699,2]
[400548994,1767711043878,-634.09365022,0.00013699,2]
[400548996,1767711043891,-151.0,0.00013699,2]
[400548998,1767711043905,-500.0,0.00013699,2]
[400549000,1767711043917,-160.98698718,0.00013699,2]
[400549002,1767711043930,-500.0,0.00013699,2]
[400549004,1767711043943,-500.0,0.00013699,2]
[400549006,1767711043954,-500.0,0.00013699,2]
[400549009,1767711043965,-500.0,0.00013699,2]
[400549011,1767711043977,-500.0,0.00013699,2]
[400549013,1767711043988,-151.0,0.000137,2]
[400549015,1767711043999,-1000.0,0.00013821,2]
[400549018,1767711044011,-1000.0,0.00013821,2]
[400549020,1767711044022,-520.94257474,0.00013821,2]
[400549022,1767711044036,-1000.0,0.00013821,2]
[400549024,1767711044051,-1000.0,0.00013821,2]
[400549027,1767711044062,-1000.0,0.00013821,2]
[400549029,1767711044075,-1000.0,0.00013821,2]
[400549031,1767711044086,-951.84390246,0.00013821,2]
[400549033,1767711044097,-1000.0,0.00013821,2]
[400549036,1767711044109,-677.69550258,0.00013821,2]
[400549038,1767711044120,-1000.0,0.00013821,2]
[400549040,1767711044131,-1000.0,0.00013821,2]
[400549042,1767711044143,-1000.0,0.00013821,2]
[400549045,1767711044156,-1000.0,0.00013821,2]
[400549047,1767711044167,-1001.73984086,0.00013821,2]
[400549049,1767711044180,-1000.0,0.00013821,2]
[400549051,1767711044191,-1000.0,0.00013821,2]
[400549054,1767711044201,-501.72577192,0.00013821,2]
[400549056,1767711044212,-1000.0,0.00013821,2]
[400549058,1767711044223,-1000.0,0.00013821,2]
[400549060,1767711044234,-1001.21950911,0.00013821,2]
[400549062,1767711044246,-1000.0,0.00013821,2]
[400549065,1767711044257,-500.66277805,0.00013821,2]
[400549067,1767711044270,-500.66535863,0.00013821,2]
[400549069,1767711044282,-661.07735711,0.00013821,2]
[400549072,1767711044294,-1000.0,0.00013821,2]
[400549074,1767711044306,-1000.0,0.00013821,2]
[400549076,1767711044317,-1000.0,0.00013821,2]
[400549079,1767711044329,-1061.44282102,0.00013821,2]
[400549081,1767711044341,-1000.0,0.00013821,2]
[400549083,1767711044352,-1000.0,0.00013821,2]
[400549086,1767711044363,-1000.0,0.00013821,2]
[400549088,1767711044375,-500.94649807,0.00013821,2]
[400549090,1767711044386,-205.80536372,0.00013821,2]
[400549092,1767711044398,-494.63820199,0.00013821,2]
[400549095,1767711044412,-1000.0,0.00013821,2]
[400549097,1767711044424,-500.98834763,0.00013821,2]
[400549099,1767711044434,-1000.0,0.00013821,2]
[400549101,1767711044446,-1000.0,0.00013821,2]
[400549104,1767711044458,-1000.0,0.00013821,2]
[400549106,1767711044471,-500.73997279,0.00013821,2]
[400549108,1767711044483,-698.64498703,0.00013821,2]
[400549110,1767711044495,-500.53921028,0.00013821,2]
[400549113,1767711044507,-1001.85390902,0.00013821,2]
[400549115,1767711044520,-500.58173584,0.00013821,2]
[400549117,1767711044532,-500.92913972,0.00013821,2]
[400549119,1767711044543,-500.29667581,0.00013821,2]
[400549122,1767711044555,-1000.0,0.00013821,2]
[400549124,1767711044566,-1000.0,0.00013821,2]
[400549126,1767711044577,-151.0,0.00013821,2]
[400549128,1767711044589,-151.0,0.00013821,2]
[400549131,1767711044602,-151.0,0.00013821,2]
[400549133,1767711044616,-269.170699,0.00013821,2]
[400549136,1767711044628,-269.170699,0.00013821,2]
[400549138,1767711044639,-269.170699,0.00013821,2]
[400549140,1767711044649,-269.170699,0.00013821,2]
[400549142,1767711044660,-618.008304,0.00013821,2]
[400549144,1767711044673,-618.008304,0.00013821,2]
[400549146,1767711044694,-618.008304,0.00013821,2]
[400549148,1767711044715,-618.008304,0.00013821,2]
[400549150,1767711044735,-151.0,0.00013821,2]
[400549152,1767711044745,-151.0,0.00013821,2]
[400549154,1767711044755,-10000.0,0.0001386,2]
[400549156,1767711044764,-695.61193139,0.00013873,2]
[400549175,1767711044942,-1152.0,0.00014073,2]
[400549178,1767711044961,-151.0,0.000141,2]
[400549180,1767711044971,-151.0,0.000141,2]
[400549182,1767711044980,-226.61753524,0.00014175,2]
[400549184,1767711044995,-505.97542799,0.00014175,2]
[400549186,1767711045005,-663.93287602,0.00014178,2]
[400549189,1767711045023,-3207.40519818,0.00014178,2]
[400549191,1767711045032,-600.0,0.00014221,2]
[400549193,1767711045043,-21737.9650384,0.0001423,2]
[400549195,1767711045052,-1001.57471188,0.00014247,2]
[400549197,1767711045061,-1000.0,0.00014247,2]
[400549199,1767711045070,-1000.0,0.00014247,2]
[400549201,1767711045079,-1063.41663894,0.00014247,2]
[400549203,1767711045089,-839.31730288,0.00014247,2]
[400549205,1767711045098,-639.63755637,0.00014247,2]
[400549207,1767711045108,-1000.0,0.00014247,2]
[400549209,1767711045117,-1000.0,0.00014247,2]
[400549211,1767711045127,-501.0386878,0.00014247,2]
[400549213,1767711045136,-443.89072638,0.00014247,2]
[400549215,1767711045146,-500.0,0.00014247,2]
[400549216,1767711045157,-500.84667986,0.00014247,2]
[400549219,1767711045167,-500.81877837,0.00014247,2]
[400549221,1767711045176,-1000.0,0.00014247,2]
[400549223,1767711045185,-1000.0,0.00014247,2]
[400549225,1767711045195,-500.54517436,0.00014247,2]
[400549227,1767711045204,-990.59981641,0.00014368,2]
[400549229,1767711045213,-895.29943272,0.00014368,2]
[400549231,1767711045222,-578.40954655,0.00014368,2]
[400549233,1767711045231,-435.85146514,0.00014368,2]
[400549235,1767711045240,-1000.0,0.00014368,2]
[400549237,1767711045249,-372.41289398,0.00014368,2]
[400549239,1767711045259,-501.72997305,0.00014368,2]
[400549240,1767711045268,-1501.26007946,0.00014368,2]
[400549243,1767711045277,-1500.0,0.00014368,2]
[400549245,1767711045287,-507.846766,0.00014368,2]
[400549247,1767711045296,-501.7117257,0.00014368,2]
[400549249,1767711045306,-1500.0,0.00014368,2]
[400549251,1767711045315,-1500.0,0.00014368,2]
[400549253,1767711045323,-1002.25371869,0.00014368,2]
[400549255,1767711045332,-1000.0,0.00014368,2]
[400549257,1767711045342,-1063.51122332,0.00014368,2]
[400549259,1767711045351,-504.3899978,0.00014368,2]
[400549261,1767711045360,-501.73341941,0.00014368,2]
[400549263,1767711045369,-1500.0,0.00014368,2]
[400549265,1767711045378,-1002.10613281,0.00014368,2]
[400549267,1767711045387,-502.20988126,0.00014368,2]
[400549269,1767711045396,-501.3085001,0.00014368,2]
[400549271,1767711045408,-502.74191272,0.00014368,2]
[400549273,1767711045417,-1500.0,0.00014368,2]
[400549275,1767711045427,-1500.0,0.00014368,2]
[400549277,1767711045437,-1500.0,0.00014368,2]
[400549279,1767711045446,-1500.0,0.00014368,2]
[400549281,1767711045455,-1041.66666667,0.00014448,2]
[400549282,1767711045464,-151.0,0.000145,2]
[400549284,1767711045474,-1000.0,0.00014649,2]
[400549286,1767711045483,-244.0,0.00014649,2]
[400549288,1767711045491,-152.0,0.00014698,2]
[400549290,1767711045501,-166.0,0.00014698,2]
[400549292,1767711045509,-152.0,0.00014698,2]
[400549294,1767711045518,-166.0,0.00014698,2]
[400549296,1767711045528,-152.0,0.00014698,2]
[400549298,1767711045537,-152.0,0.00014698,2]
[400549300,1767711045547,-166.0,0.00014698,2]
[400549302,1767711045557,-163.0,0.00014698,2]
[400549304,1767711045567,-152.0,0.00014698,2]
[400549306,1767711045576,-163.0,0.00014698,2]
[400549308,1767711045586,-152.0,0.00014698,2]
[400549310,1767711045596,-153.76138875,0.00014698,2]
[400549312,1767711045606,-185.22374852,0.00014698,2]
[400549314,1767711045615,-152.0,0.00014698,2]
[400549316,1767711045625,-152.0,0.00014698,2]
[400549318,1767711045634,-152.0,0.00014698,2]
[400549320,1767711045644,-152.0,0.00014698,2]
[400549322,1767711045660,-152.0,0.00014698,2]
[400549324,1767711045670,-284.0,0.00014698,2]
[400549326,1767711045683,-357.37586378,0.00014698,2]
[400549328,1767711045692,-688.49839244,0.00014726,2]
[400549330,1767711045702,-3326.07919052,0.00014726,2]
[400549332,1767711045711,-4850.3956203,0.00014753,2]
[400549334,1767711045721,-900.0,0.00014768,2]
[400549336,1767711045730,-690.51130763,0.00014795,2]
[400549338,1767711045740,-770.20741447,0.00014795,2]
[400549340,1767711045752,-1500.0,0.00014795,2]
[400549342,1767711045763,-692.18736728,0.00014795,2]
[400549344,1767711045772,-1500.0,0.00014795,2]
[400549346,1767711045782,-533.7772006,0.00014795,2]
[400549348,1767711045791,-151.0,0.000148,2]
[400549350,1767711045801,-260.4277887,0.00014853,2]
[400549352,1767711045810,-84511.44625932,0.00014882,2]
[400549354,1767711045820,-151.418138,0.00014882,2]
[400549356,1767711045829,-151.0,0.00014882,2]
[400549358,1767711045838,-170.976512,0.00014882,2]
[400549359,1767711045847,-294.498012,0.00014882,2]
[400549361,1767711045859,-269.170699,0.00014882,2]
[400549363,1767711045868,-269.170699,0.00014882,2]
[400549365,1767711045877,-269.170699,0.00014882,2]
[400549366,1767711045886,-269.170699,0.00014882,2]
[400549367,1767711045895,-618.008304,0.00014882,2]
[400549368,1767711045909,-618.008304,0.00014882,2]
[400549369,1767711045919,-618.008304,0.00014882,2]
[400549371,1767711045929,-618.008304,0.00014882,2]
[400549372,1767711045938,-151.0,0.00014882,2]
[400549373,1767711045948,-170.332431,0.00014882,2]
[400549374,1767711045958,-151.0,0.000149,2]
[400549375,1767711045967,-2000.0,0.00014916,2]
[400549376,1767711045977,-2000.0,0.00014916,2]
[400549377,1767711045987,-364.76040242,0.00014916,2]
[400549378,1767711045998,-2041.38457236,0.00014916,2]
[400549379,1767711046008,-2004.65778591,0.00014916,2]
[400549380,1767711046017,-441.71646667,0.00014916,2]
[400549381,1767711046027,-2000.0,0.00014916,2]
[400549382,1767711046037,-2000.0,0.00014916,2]
[400549383,1767711046046,-869.88,0.00015,5]
[400549385,1767711046055,-758.91381154,0.00015,2]
[400549387,1767711046064,-1000.0,0.00015,2]
[400549389,1767711046074,-420.194198,0.00015068,2]
[400549391,1767711046084,-800.0,0.00015068,2]
[400549393,1767711046094,-713.97283296,0.00015274,2]
[400549394,1767711046104,-3449.14412057,0.00015274,2]
[400549395,1767711046114,-889.37550664,0.00015316,2]
[400549397,1767711046123,-2000.0,0.00015342,2]
[400549399,1767711046133,-1006.10461326,0.00015342,2]
[400549401,1767711046144,-695.61193139,0.00015386,2]
[400549403,1767711046156,-2500.0,0.00015464,2]
[400549405,1767711046166,-1028.44505692,0.00015464,2]
[400549407,1767711046176,-1556.89714871,0.00015464,2]
[400549409,1767711046186,-887.16845353,0.00015464,2]
[400549411,1767711046197,-1613.0,0.0001548,2]
[400549414,1767711046206,-467.04963493,0.0001552,2]
[400549417,1767711046216,-151.0,0.000156,2]
[400549419,1767711046226,-877.10991069,0.00015716,3]
[400549421,1767711046236,-3512.86180404,0.00015719,2]
[400549423,1767711046247,-1365.0,0.0001574,2]
[400549425,1767711046257,-2145.0,0.0001574,2]
[400549427,1767711046267,-628.0,0.0001574,2]
[400549429,1767711046277,-150.275,0.0001574,2]
[400549431,1767711046287,-800.0,0.00015786,2]
[400549433,1767711046296,-740.38982778,0.00015822,2]
[400549435,1767711046306,-3576.76245303,0.00015822,2]
[400549437,1767711046316,-800.0,0.00015871,2]
[400549439,1767711046326,-800.0,0.00015878,2]
[400549441,1767711046336,-2500.0,0.0001589,2]
[400549443,1767711046346,-150.5,0.000159,2]
[400549445,1767711046356,-10000.0,0.00015939,2]
[400549447,1767711046369,-3000.0,0.00016,2]
[400549449,1767711046380,-3000.0,0.0001601,2]
[400549451,1767711046390,-2493.85987564,0.00016012,2]
[400549453,1767711046403,-3000.0,0.0001602,2]
[400549455,1767711046412,-3229.401629,0.0001603,2]
[400549457,1767711046422,-1000.0,0.00016113,2]
[400549459,1767711046431,-492.0,0.00016113,2]
[400549461,1767711046440,-801.099384,0.00016164,2]
[400549463,1767711046449,-151.0,0.000163,2]
[400549464,1767711046458,-163.06318377,0.00016311,2]
[400549466,1767711046470,-767.7842514,0.0001637,2]
[400549468,1767711046480,-3709.10266379,0.0001637,2]
[400549470,1767711046489,-500.0,0.00016438,2]
[400549472,1767711046499,-594.0421836,0.00016438,2]
[400549473,1767711046507,-151.0,0.00016438,2]
[400549475,1767711046517,-151.0,0.00016438,2]
[400549477,1767711046527,-151.0,0.00016438,2]
[400549479,1767711046536,-151.0,0.00016438,2]
[400549481,1767711046545,-151.0,0.00016438,2]
[400549483,1767711046554,-151.0,0.00016438,2]
[400549485,1767711046563,-190.765907,0.00016438,2]
[400549487,1767711046573,-200.0,0.00016438,3]
[400549489,1767711046581,-200.0,0.00016438,3]
[400549491,1767711046591,-200.0,0.00016438,3]
[400549493,1767711046599,-200.0,0.00016438,3]
[400549494,1767711046608,-200.0,0.00016438,3]
[400549496,1767711046618,-200.0,0.00016438,3]
[400549498,1767711046626,-151.0,0.00016438,2]
[400549500,1767711046635,-151.0,0.00016438,2]
[400549501,1767711046645,-151.0,0.00016438,2]
[400549502,1767711046658,-151.0,0.00016438,2]
[400549503,1767711046668,-287.718466,0.00016438,2]
[400549505,1767711046679,-3000.0,0.00016438,2]
[400549506,1767711046692,-279.48316518,0.00016473,2]
[400549507,1767711046702,-150.5,0.000169,2]
[400549508,1767711046711,-150.5,0.000169,2]
[400549509,1767711046720,-695.61193139,0.000169,2]
[400549510,1767711046731,-939.65125317,0.00016918,2]
[400549512,1767711046740,-3846.33946235,0.00016918,2]
[400549513,1767711046749,-2895.16188097,0.00016984,2]
[400549515,1767711046762,-1000.0,0.00016986,2]
[400549517,1767711046771,-61162.51963186,0.00017,2]
[400549519,1767711046780,-163349.36340269,0.00017,7]
[400549521,1767711046790,-151.0,0.00017,2]
[400549522,1767711046799,-151.0,0.00017,2]
[400549524,1767711046808,-151.0,0.00017,2]
[400549526,1767711046818,-269.170699,0.00017,2]
[400549528,1767711046828,-269.170699,0.00017,2]
[400549530,1767711046837,-269.170699,0.00017,2]
[400549532,1767711046847,-269.170699,0.00017,2]
[400549534,1767711046856,-269.170699,0.00017,2]
[400549536,1767711046865,-269.170699,0.00017,2]
[400549537,1767711046875,-269.170699,0.00017,2]
[400549539,1767711046883,-269.170708,0.00017,2]
[400549541,1767711046893,-618.008304,0.00017,2]
[400549543,1767711046904,-618.008304,0.00017,2]
[400549545,1767711046914,-618.008304,0.00017,2]
[400549546,1767711046923,-618.008304,0.00017,2]
[400549547,1767711046934,-618.008304,0.00017,2]
[400549548,1767711046943,-618.008304,0.00017,2]
[400549549,1767711046953,-618.008304,0.00017,2]
[400549550,1767711046962,-618.008305,0.00017,2]
[400549551,1767711046972,-151.0,0.00017,2]
[400549553,1767711046981,-151.0,0.00017,2]
[400549555,1767711046991,-1680.0,0.00017028,2]
[400549557,1767711047000,-222.0,0.0001713,2]
[400549559,1767711047009,-222.0,0.00017169,2]
[400549561,1767711047018,-222.0,0.00017194,2]
[400549562,1767711047028,-222.0,0.00017217,2]
[400549564,1767711047037,-1088.22740367,0.00017266,6]
[400549565,1767711047046,-150.994,0.00017344,2]
[400549567,1767711047055,-260.932,0.00017344,2]
[400549569,1767711047065,-12808.86160291,0.00017452,2]
[400549571,1767711047075,-3988.65402246,0.00017466,2]
[400549573,1767711047084,-521.63985199,0.0001752,2]
[400549575,1767711047094,-178.0,0.00017649,2]
[400549577,1767711047103,-222.0,0.00017653,2]
[400549579,1767711047112,-151.0,0.00017682,2]
[400549581,1767711047122,-222.0,0.00017684,2]
[400549582,1767711047131,-151.0,0.000177,2]
[400549584,1767711047141,-1000.0,0.00017725,2]
[400549586,1767711047152,-791.0,0.00017725,2]
[400549588,1767711047161,-222.0,0.00017823,2]
[400549590,1767711047171,-150.5,0.000179,3]
[400549592,1767711047180,-150.5,0.000179,3]
[400549594,1767711047189,-168.0,0.000179,2]
[400549596,1767711047198,-168.0,0.00017929,2]
[400549598,1767711047212,-168.0,0.00017943,2]
[400549600,1767711047221,-178.0,0.0001795,2]
[400549602,1767711047230,-168.0,0.00017963,2]
[400549604,1767711047239,-199.99999901,0.00018,2]
[400549606,1767711047249,-168.0,0.00018001,2]
[400549608,1767711047258,-168.0,0.00018058,2]
[400549610,1767711047267,-168.0,0.00018065,2]
[400549612,1767711047276,-168.0,0.00018082,2]
[400549614,1767711047285,-151.0,0.00018097,2]
[400549615,1767711047294,-168.0,0.00018107,2]
[400549617,1767711047304,-168.0,0.00018382,2]
[400549619,1767711047313,-168.0,0.00018433,2]
[400549621,1767711047322,-5888.0,0.00018438,2]
[400549623,1767711047332,-420.194198,0.00018493,2]
[400549625,1767711047341,-151.0,0.000185,2]
[400549627,1767711047350,-151.0,0.00018512,2]
[400549628,1767711047359,-3692.0,0.00018587,2]
[400549630,1767711047369,-2000.0,0.00018608,7]
[400549632,1767711047378,-5888.0,0.00018626,2]
[400549634,1767711047387,-1365.0,0.0001874,2]
[400549636,1767711047396,-2145.0,0.0001874,2]
[400549638,1767711047408,-628.0,0.0001874,2]
[400549640,1767711047417,-1313.88597713,0.00018815,9]
[400549642,1767711047426,-2000.0,0.0001886,3]
[400549644,1767711047435,-2000.0,0.00018869,3]
[400549646,1767711047445,-2000.0,0.00018869,3]
[400549648,1767711047455,-2000.0,0.00018878,3]
[400549649,1767711047463,-2000.0,0.00018878,3]
[400549651,1767711047473,-2000.0,0.00018887,3]
[400549653,1767711047483,-2000.0,0.00018887,3]
[400549655,1767711047492,-2000.0,0.00018896,3]
[400549657,1767711047501,-2000.0,0.00018896,3]
[400549659,1767711047510,-42279.56725066,0.000189,2]
[400549661,1767711047520,-150.5,0.000189,4]
[400549663,1767711047529,-150.5,0.000189,4]
[400549665,1767711047539,-303.43994696,0.000189,2]
[400549666,1767711047548,-2000.0,0.00018904,3]
[400549668,1767711047557,-2000.0,0.00018904,3]
[400549670,1767711047566,-2000.0,0.00018913,3]
[400549672,1767711047576,-2000.0,0.00018913,3]
[400549674,1767711047587,-2000.0,0.00018922,3]
[400549676,1767711047596,-2000.0,0.00018922,3]
[400549678,1767711047605,-2000.0,0.00018922,3]
[400549679,1767711047615,-151.0,0.00018926,2]
[400549681,1767711047625,-1500.000001,0.00019,2]
[400549682,1767711047634,-303.43994696,0.00019089,2]
[400549683,1767711047645,-2000.0,0.00019178,7]
[400549684,1767711047655,-151.0,0.00019178,2]
[400549685,1767711047665,-151.0,0.00019178,2]
[400549686,1767711047675,-151.0,0.00019178,2]
[400549687,1767711047688,-262.607866,0.00019178,2]
[400549688,1767711047698,-155.649023,0.00019178,2]